Cogmind - Beta 10 @@@ ROGUE MODE // 2020.09.12 @ 08:27:30 Player: BlueballsRIF Result: Heading to fleet! Performance ------------- Evolutions (9) 4500 Regions Visited (26) 5200 Robots Destroyed (307) 1535 Value Destroyed (16539) 16539 Prototype IDs (70) 1400 Alien Tech Used (11) 2200 Bonus (30918) 30918 TOTAL SCORE: 62292 Bonus ------- High Alert Combat Kills 1884 Follower Combat Kills 1582 Entered Garrisons 1000 Used RIF Installer 2500 Network Hubs Disabled 200 Built Enhanced Grunts 300 A7 Reached Mainframe 300 Used Core Reset Matrix 3000 Destroyed MAIN.C Guards 500 Met MAIN.C 5000 Destroyed MAIN.C Shell 5000 Destroyed MAIN.C 10000 Win 3000 Friendly Fire -3348 Cogmind --------- Core Integrity 1450/1600 Matter 425/425 Energy 686/700 System Corruption 0% Temperature Cool (8) Movement Treading (190) Ox1 Location To Fleet Rendezvous Parts ------- > --- POWER (2) -------- Vortex Chain Reactor > --- PROPULSION (4) --- Armored Heavy Treads Armored Heavy Treads > --- UTILITY (14) ----- Experimental Coolant Injector Large Storage Unit High-capacity Storage Unit High-capacity Storage Unit Experimental Optical Array Experimental Targeting Computer Experimental Targeting Computer Experimental Target Analyzer Experimental Core Analyzer Experimental Armor Integrity Analyzer Improved Utility Shielding Experimental Powered Armor Experimental Powered Armor AEGIS Remote Shield > --- WEAPON (5) ------- Hypervelocity Multirail Hypervelocity Multirail Hypervelocity Multirail Sigix Broadsword > --- INVENTORY (26) --- Vortex Chain Reactor High-density Centrium Heavy Treads Experimental Energy Well (1000) Experimental Energy Well (1000) Experimental Matter Compressor (500) Beam Splitter AEGIS Remote Shield Matter Drive Heavy Quantum Rifle Sigix Quantum Sheargun Sigix Quantum Sheargun Sigix Quantum Sheargun Multirail Multirail Multirail Multirail Multirail Multirail Multirail Graviton Cannon Graviton Cannon Core Stripper Peak State ------------ > --- POWER ------------ Vortex Chain Reactor > --- PROPULSION ------- Armored Heavy Treads Armored Heavy Treads > --- UTILITY ---------- Experimental Coolant Injector Large Storage Unit High-capacity Storage Unit High-capacity Storage Unit Experimental Optical Array Experimental Targeting Computer Experimental Targeting Computer Experimental Target Analyzer Experimental Core Analyzer Experimental Armor Integrity Analyzer Stasis Canceller Experimental Powered Armor Experimental Powered Armor AEGIS Remote Shield > --- WEAPON ----------- Hypervelocity Multirail Hypervelocity Multirail Hypervelocity Multirail Sigix Broadsword > --- INVENTORY -------- Vortex Chain Reactor High-density Centrium Heavy Treads Experimental Energy Well Experimental Energy Well Experimental Matter Compressor Beam Splitter AEGIS Remote Shield Matter Drive Heavy Quantum Rifle Sigix Quantum Sheargun Sigix Quantum Sheargun Sigix Quantum Sheargun Multirail Multirail Multirail Multirail Multirail Multirail Multirail Graviton Cannon Graviton Cannon Core Stripper [Rating: 247] Favorites ----------- Power Micro Fission Core Engine Ion Engine Power Core Micro Fission Core Reactor Vortex Chain Reactor Propulsion Combat Airjet Treads Armored Heavy Treads Leg Aluminum Leg Wheel Wheel Hover Unit Combat Airjet Utility High-capacity Storage Unit Device Experimental Coolant Injector Storage High-capacity Storage Unit Processor Experimental Targeting Computer Hackware Relay Coupler [NC] Protection Experimental Powered Armor Artifact Phase Redirector Weapon Hypervelocity Multirail Energy Gun Sigix Quantum Sheargun Energy Cannon Beam Cannon Ballistic Gun Hypervelocity Multirail Ballistic Cannon Bore Cannon Launcher Smartbomb Launcher Special Weapon Improved Remote Datajack Impact Weapon Core Stripper Slashing Weapon Sigix Broadsword Piercing Weapon Heavy Pick Build | -11 -10 -9 -9 -9 -9 -7 -7 -7 -7 -6 -6 -5 -5 -5 -5 -5 -5 -5 -4 -4 -3 -2 -2 -2 -1 -1 ------- Run | Scr Mat Mat Sto Gar Rec Fac Gar Fac Gar Fac Gar Fac Was Fac Ext Cet Arc Hub Fac Gar Res Res Qua Sec Acc Com Slots Evolved 18 | . . 2 . . . 4 . . . 2 . 2 . . . . . . 2 . 2 2 . . 2 . Power 1 | . . . . . . 1 . . . . . . . . . . . . . . . . . . . . Propulsion 2 | . . . . . . 1 . . . 1 . . . . . . . . . . . . . . . . Utility 12 | . . 1 . . . 2 . . . 1 . 2 . . . . . . 2 . 2 1 . . 1 . Weapon 3 | . . 1 . . . . . . . . . . . . . . . . . . . 1 . . 1 . Parts Attached 428 | 7 15 6 6 1 . 9 17 6 15 12 . 17 8 1 7 14 . 5 1 18 16 13 54 80 5 95 Power 45 | 1 2 1 . 1 . 2 3 1 3 1 . 5 . . 1 2 . . . 2 . . 5 7 . 8 Engine 9 | 1 2 1 . 1 . 1 . . . 1 . 2 . . . . . . . . . . . . . . Core 15 | . . . . . . 1 3 1 3 . . 3 . . 1 1 . . . 2 . . . . . . Reactor 21 | . . . . . . . . . . . . . . . . 1 . . . . . . 5 7 . 8 Propulsion 53 | 2 3 . 1 . . 4 4 . 3 4 . 2 . . 1 2 . . . . 5 3 7 5 . 7 Treads 28 | 2 3 . 1 . . 2 1 . . . . . . . . . . . . . . . 7 5 . 7 Leg 6 | . . . . . . . 3 . 3 . . . . . . . . . . . . . . . . . Wheel 2 | . . . . . . 2 . . . . . . . . . . . . . . . . . . . . Hover 17 | . . . . . . . . . . 4 . 2 . . 1 2 . . . . 5 3 . . . . Flight . | . . . . . . . . . . . . . . . . . . . . . . . . . . . Utility 166 | 2 2 2 2 . . 3 3 3 4 3 . 4 3 1 2 5 . 4 1 6 5 6 20 36 2 47 Device 69 | 1 1 . 2 . . 1 3 . . . . 1 . 1 1 1 . . 1 2 2 4 9 19 1 19 Storage 28 | . 1 . . . . . . 1 3 . . 1 . . . 1 . 1 . . . . 5 4 . 11 Processor 18 | 1 . 1 . . . 1 . . . 2 . . 1 . . . . . . . 2 . 1 3 1 5 Hackware 11 | . . 1 . . . . . . . 1 . . . . . . . 2 . 3 . 1 2 1 . . Protection 39 | . . . . . . 1 . 2 1 . . 2 2 . 1 3 . 1 . 1 1 1 2 9 . 12 Artifact 1 | . . . . . . . . . . . . . . . . . . . . . . . 1 . . . Weapon 164 | 2 8 3 3 . . . 7 2 5 4 . 6 5 . 3 5 . 1 . 10 6 4 22 32 3 33 Energy Gun 11 | . . . . . . . . . . . . 2 . . . . . . . . . . . . 1 8 Energy Cannon 35 | . 3 . . . . . . . . . . . . . . 1 . . . . . 1 8 12 2 8 Ballistic Gun 48 | 2 3 2 3 . . . 7 2 5 . . . . . 1 3 . . . 5 . . . 3 . 12 Ballistic Cannon 9 | . . . . . . . . . . 1 . . 3 . . . . . . . 1 . 1 2 . 1 Launcher 13 | . . . . . . . . . . 2 . 3 1 . 2 1 . . . 3 1 . . . . . Special Weapon 21 | . 2 1 . . . . . . . 1 . 1 1 . . . . . . 2 1 3 5 4 . . Impact Weapon 6 | . . . . . . . . . . . . . . . . . . . . . . . 3 3 . . Slashing Weapon 13 | . . . . . . . . . . . . . . . . . . . . . . . 3 6 . 4 Piercing Weapon 8 | . . . . . . . . . . . . . . . . . . 1 . . 3 . 2 2 . . Special Melee Weapon . | . . . . . . . . . . . . . . . . . . . . . . . . . . . Unidentified Prototypes 35 | . . . . . . . . 1 . . . . . . . 4 . . 1 . 1 . 9 9 . 10 Parts Lost 40 | . 1 . . . . . 11 . 6 . . 3 . . . . . . . 1 . 4 . 6 . 8 Power 7 | . 1 . . . . . 2 . 1 . . 1 . . . . . . . . . . . 1 . 1 Propulsion 7 | . . . . . . . 3 . 2 . . . . . . . . . . . . 1 . . . 1 Utility 17 | . . . . . . . 3 . 2 . . 1 . . . . . . . 1 . 3 . 4 . 3 Weapon 9 | . . . . . . . 3 . 1 . . 1 . . . . . . . . . . . 1 . 3 Highest Loss Streak 11 | . 1 . . . . . 11 . 4 . . 3 . . . . . . . 1 . 2 . 2 . 3 Average Slot Usage (%) 86 | . 99 100 99 100 100 97 80 99 93 99 100 94 94 94 91 91 100 100 91 96 92 90 80 74 74 81 Engine 2 | . 13 11 11 11 11 12 1 5 2 5 6 2 . . . . . . . . . . . . . . Core 3 | . . . . . . 1 10 8 12 6 6 6 11 11 11 11 11 11 10 10 9 8 3 . . . Reactor 2 | . . . . . . . . . . . . . . . . . . . . . . . 3 5 8 5 Treads 8 | . 28 22 22 22 22 11 8 . . . . . . . . . . . . . . . 7 7 8 7 Leg 1 | . . . . . . . 7 23 21 . . . . . . . . . . . . . . . . . Hover 5 | . . . . . . . . . . 26 26 22 23 23 23 23 23 23 21 21 19 17 1 . . . Device 9 | . 14 3 5 11 11 13 10 13 7 2 . 5 5 5 5 5 5 5 7 10 9 12 10 7 9 9 Storage 11 | . 13 11 11 11 11 7 7 7 11 13 13 17 15 11 11 11 11 8 10 10 9 7 9 14 14 12 Processor 11 | . . 11 5 . . 7 7 7 3 9 13 11 11 11 10 5 5 5 5 5 10 8 9 11 14 19 Hackware 6 | . . 7 11 11 11 7 1 . . 5 6 5 5 5 5 5 5 13 10 11 14 16 16 12 8 . Protection 6 | . . . . . . 1 1 8 9 6 6 4 7 11 11 17 17 11 10 10 9 6 3 4 4 10 Energy Cannon 2 | . 22 . . . . . . . . . . . . . . 3 . . . . . . . . 1 . Ballistic Gun 8 | . 4 33 32 33 33 23 22 23 23 . . . . . . 3 17 16 10 14 1 . . . . 8 Slashing Weapon 2 | . . . . . . . . . . . . . . . . . . . . . . . 3 3 4 3 Naked Turns . | . . . . . . . . . . . . . . . . . . . . . . . . . . . Heaviest Build 193 | 9 44 47 48 48 46 54 54 60 92 93 67 73 77 77 77 91 86 86 78 86 84 88 156 184 191 193 Greatest Support 180 | 40 40 40 43 43 43 63 63 30 35 88 88 88 88 88 88 104 88 88 88 104 104 99 180 180 150 180 Greatest Overweight (x) 28 | . 1 1 1 1 1 2 17 1 5 1 . 1 . . . 1 28 . . . . . . 1 1 3 Average Overweight (x) . | . . 1 . 1 1 1 1 1 1 . . . . . . . 5 . . . . . . . 1 . Largest Inventory Capacity 30 | 4 12 12 12 12 12 12 12 12 20 20 12 12 12 12 12 12 12 12 12 12 12 12 26 26 26 30 Average Capacity 19 | 4 11 12 12 12 12 12 12 12 13 13 12 12 12 12 12 12 12 12 12 12 12 12 20 26 26 25 Most Carried 26 | 3 12 12 12 12 12 12 12 12 20 20 12 12 12 12 12 12 12 12 12 12 12 12 25 26 26 26 Average Carried 17 | . 9 11 11 11 11 11 10 11 12 11 11 11 10 11 10 10 11 11 12 11 11 11 18 24 24 24 Final Capacity 26 | 4 12 12 12 12 12 12 12 12 20 12 12 12 12 12 12 12 12 12 12 12 12 12 26 26 26 26 Final Carried 26 | 3 12 12 11 11 12 12 11 12 20 11 12 12 12 12 12 11 12 12 12 11 12 12 25 26 24 26 Class Distribution -------------------- 31% | Scavenger-Mutant 22% | Scavenger-Gunner 16% | Scavenger-Tank 12% | Hacker-Mutant 9% | Mutant 4% | Tank Dominant Class ---------------- Mutant | -10/Materials Gunner | -9/Materials Gunner | -9/Storage Tank | -9/Garrison Tank | -9/Recycling Scavenger-Tank | -7/Factory Scavenger-Gunner | -7/Garrison Scavenger-Tank | -7/Factory Scavenger-Tank | -7/Garrison Scavenger-Mutant | -6/Factory Scavenger-Mutant | -6/Garrison Scavenger-Mutant | -5/Factory Scavenger-Mutant | -5/Waste Scavenger-Mutant | -5/Factory Scavenger-Mutant | -5/Extension Scavenger-Mutant | -5/Cetus Scavenger-Tank | -5/Archives Scavenger-Tank | -5/Hub_04(d) Scavenger-Tank | -4/Factory Scavenger-Tank | -4/Garrison Scavenger-Mutant | -3/Research Scavenger-Mutant | -2/Research Hacker-Mutant | -2/Quarantine Scavenger-Mutant | -2/Section 7 Scavenger-Mutant | -1/Access Scavenger-Gunner | -1/Command Resources | -11 -10 -9 -9 -9 -9 -7 -7 -7 -7 -6 -6 -5 -5 -5 -5 -5 -5 -5 -4 -4 -3 -2 -2 -2 -1 -1 ----------- Run | Scr Mat Mat Sto Gar Rec Fac Gar Fac Gar Fac Gar Fac Was Fac Ext Cet Arc Hub Fac Gar Res Res Qua Sec Acc Com Matter Collected 9530 | 330 219 84 . 218 . 144 314 143 686 100 212 213 725 56 489 380 165 206 . 596 106 383 654 1239 58 1810 Remotely 50 | . . . . . . . . . . . . . . . . . . . . . . 50 . . . . Salvage Created 17852 | 173 889 187 . 241 40 140 583 143 570 . 352 252 1143 . 705 386 206 298 99 488 162 489 2068 3356 542 4340 Parts 789 | 15 69 10 . 22 2 11 41 13 40 . 6 16 3 . 34 16 14 14 3 22 10 25 71 142 30 160 Haulers Intercepted 4 | . 1 . . . . . . . . . . . . . . . . 1 . . 1 . 1 . . . Recyclers Shooed 6 | . . . . . . . . . . . . . . . 4 . . . . . 1 . . . . 1 Parts Field Recycled . | . . . . . . . . . . . . . . . . . . . . . . . . . . . Retrieved Matter . | . . . . . . . . . . . . . . . . . . . . . . . . . . . Parts Self-Destructed . | . . . . . . . . . . . . . . . . . . . . . . . . . . . Prevented . | . . . . . . . . . . . . . . . . . . . . . . . . . . . Kills | -11 -10 -9 -9 -9 -9 -7 -7 -7 -7 -6 -6 -5 -5 -5 -5 -5 -5 -5 -4 -4 -3 -2 -2 -2 -1 -1 ------- Run | Scr Mat Mat Sto Gar Rec Fac Gar Fac Gar Fac Gar Fac Was Fac Ext Cet Arc Hub Fac Gar Res Res Qua Sec Acc Com Combat Hostiles Destroyed 235 | . 19 4 . 10 1 2 14 2 11 . 13 9 6 . 17 4 1 1 . 12 3 3 21 35 9 38 Melee 38 | . . . . . 1 . . . . . . . . . . . . . . . . 3 11 19 2 2 Guns 78 | . 7 4 . 10 . 2 14 2 11 . . . . . . . 1 1 . 7 . . . 2 . 17 Cannons 51 | . 12 . . . . . . . . . . . . . . . . . . . . . 6 9 7 17 AOE 53 | . . . . . . . . . . . 13 8 5 . 17 2 . . . 5 3 . . . . . Classes Destroyed 23 | 2 7 2 . . 1 . . 1 1 . 1 . 2 . 1 . . . . . . . 2 1 . 2 Worker 13 | . 1 . . . . 1 . . . . . . . . 5 . . 4 . . 1 1 . . . . Builder 13 | . 2 . . . . . . . . . . 1 . . 4 . . 2 . . . . 2 . 2 . Tunneler 5 | 5 . . . . . . . . . . . . . . . . . . . . . . . . . . Hauler 4 | . 1 . . . . . . . . . . . . . . . . 1 . . 1 . 1 . . . Recycler 11 | 1 2 . . . 1 . . . . . . . . . 3 . . . . . . 3 . . . 1 Operator 10 | . 2 . . . . . . 1 . . . . . . . . 4 . . . . . 1 . . 2 Drone 1 | . . . . . 1 . . . . . . . . . . . . . . . . . . . . . Watcher 6 | . 2 . . . . . . . . . . . . . . . . . . . . . . 2 1 1 Swarmer 72 | . 6 . . 6 . . 8 . 10 . 4 4 . . 5 . . . . 6 3 3 3 . 6 8 Grunt 68 | . 13 2 . 4 . 1 6 . . . 7 1 . . 6 2 . 1 . 1 . . 10 9 1 4 Brawler 4 | . . 1 . . . . . . . . 1 . . . . . . . . . . . . . . 2 Duelist 1 | . . . . . . . . . . . 1 . . . . . . . . . . . . . . . Protector 1 | . . . . . . . . . . . . . . . . . . . . . . . . . . 1 Researcher 4 | . . . . . . . . . . . . . . . . . . . . . . . 2 2 . . Sentry 17 | . . 1 . . . 1 . 1 . . . 2 . . 1 . 1 . . 2 . . . 4 2 2 Specialist 1 | . . . . . . . . . . . . . . . . . . . . . . . . . . 1 Hunter 22 | . . . . . . . . . 1 . . 2 . . 1 . . . . 2 . . 2 6 . 8 Programmer 26 | . . . . . . . . 1 . . . . . . 2 . . . . 1 . . 5 11 . 6 Behemoth 3 | . . . . . . . . . . . . . . . 2 . . . . . . . . 1 . . Compactor 6 | . . . . . . . . . . . . . 6 . . . . . . . . . . . . . Cetus Guard 2 | . . . . . . . . . . . . . . . . 2 . . . . . . . . . . S7 Guard 1 | . . . . . . . . . . . . . . . . . . . . . . . . 1 . . M Guard 2 | . . . . . . . . . . . . . . . . . . . . . . . . . . 2 Enhanced Grunt 2 | . . . . . . . . . . . . . . . . 1 . . 1 . . . . . . . Combat Programmer 2 | . . . . . . . . . . . . . . . . . . . . . . . . . . 2 Executioner 4 | . . . . . . . . . . . . . . . . . . . . . . . . 4 . . Fortress 1 | . . . . . . . . . . . . . . . . . . . . . . . 1 . . . Martyr 2 | . . . . . . . . . . . . . 2 . . . . . . . . . . . . . Best Kill Streak 12 | 4 6 4 . 5 1 2 11 1 4 . 8 4 3 . 12 2 3 5 . 4 3 3 7 7 7 8 Combat Bots Only 11 | . 6 4 . 5 1 2 11 1 4 . 8 4 3 . 5 2 1 1 . 4 3 3 7 7 6 8 Max Kills in Single Turn 5 | 1 2 2 . 2 1 1 2 1 2 . 3 2 1 . 5 1 2 3 1 3 1 1 1 1 1 2 Gunslinging 1 | . . 1 . 1 . . 1 . 1 . . . . . . . . . . . . . . . . . Exploded 4 | . . . . . . . . . . . 3 2 1 . 4 1 . . . 3 1 . . . . . Melee 1 | . . . . . 1 . . . . . . . . . . . . . . . . 1 1 1 1 1 Uniques/NPCs Destroyed 2 | . . . . . . . . . . . . . . . . 1 . . . . . . . . . 1 A7 (-5/Cetus) MAIN.C Shell (-1/Command) MAIN.C (-1/Command) Combat | -11 -10 -9 -9 -9 -9 -7 -7 -7 -7 -6 -6 -5 -5 -5 -5 -5 -5 -5 -4 -4 -3 -2 -2 -2 -1 -1 -------- Run | Scr Mat Mat Sto Gar Rec Fac Gar Fac Gar Fac Gar Fac Was Fac Ext Cet Arc Hub Fac Gar Res Res Qua Sec Acc Com Damage Taken 24926 | . 569 118 . 137 . 95 1591 105 1199 85 339 592 . . 277 272 . 193 . 575 419 1004 2763 7989 311 6293 Core 1652 | . 133 22 . 26 . 14 240 44 76 18 32 23 . . 13 30 . . . 59 36 98 168 413 24 183 Absorbed by Shields 7705 | . . . . 56 . 37 90 . 14 . . . . . 157 74 . . . 13 . . 539 2296 324 4105 Reduced by Siege Mode 598 | . . . . . . . . . . . . . . . . . . . . . . . 85 323 . 190 Redirected to Core 16 | . . . . . . . . . . . . . . . . . . . . . . . 16 . . . Core Remaining (%) 76 | 100 46 . . . 88 . . . 46 . 94 . . . . . . 93 . 94 97 . . 21 . 90 Volleys Fired 710 | 15 56 5 . 12 . 6 22 7 35 1 13 21 39 . 33 40 10 13 1 37 7 17 32 79 26 183 Largest 5 | 2 2 3 . 3 . 3 3 3 3 1 2 2 1 . 1 3 3 3 2 3 1 1 3 3 1 5 Hottest 445 | 40 120 100 . 69 . 69 74 74 79 43 91 130 48 . 46 105 105 105 70 105 60 60 360 360 120 445 Shots Fired 1223 | 30 109 13 . 36 . 18 66 21 105 1 14 26 39 . 33 56 30 39 2 80 7 17 42 95 26 318 Gun 744 | 30 36 12 . 36 . 18 66 21 105 . . 10 . . 1 39 30 39 2 65 . . . 14 1 219 Cannon 337 | . 70 . . . . . . . . . 2 . 13 . . 15 . . . . 3 4 32 74 25 99 Launcher 97 | . . . . . . . . . . 1 12 15 26 . 32 2 . . . 5 4 . . . . . Special 45 | . 3 1 . . . . . . . . . 1 . . . . . . . 10 . 13 10 7 . . Kinetic 587 | 30 36 12 . 36 . 18 66 21 105 . 2 . 13 . 1 39 30 39 2 65 3 4 . 20 . 45 Thermal 212 | . 73 1 . . . . . . . . . . . . . . . . . . . . 16 23 25 74 Explosive 97 | . . . . . . . . . . 1 12 15 26 . 32 2 . . . 5 4 . . . . . Electromagnetic 109 | . . . . . . . . . . . . 10 . . . 15 . . . . . . 16 45 . 23 Slashing 177 | . . . . . . . . . . . . . . . . . . . . . . . . . 1 176 Robot Hit Streak 46 | 8 13 7 . 16 . 33 35 3 14 . 6 22 20 . 16 17 3 7 . 14 8 6 27 14 9 46 Robot Miss Streak 5 | 2 3 2 . 3 . . 3 3 5 . 1 1 4 . . 5 5 2 . 2 4 3 1 2 4 3 Penetration Max 1 | . . . . . . . . . . . . . . . 1 . 1 1 . . . . . . . 1 Secondary Targets 23 | . . 2 . 4 . . 7 . 6 . . . . . . . . . . . . . . . . 4 Max Gunslinging Chain 2 | . . 1 . 1 . . 2 . 2 . . . . . . . . . . . . . . . . 1 Capacitor 121 | . . . . . . . . . . . . . . . . . . . . . . . . . 26 95 Shots Hit Robots 994 | 21 69 12 . 22 . 17 47 10 61 . 9 18 26 . 15 28 10 10 1 41 12 18 82 142 21 302 Core Hits 611 | 9 34 8 . 12 . 6 33 7 31 . 28 26 17 . 73 11 10 9 1 18 6 9 31 68 14 150 Critical Hits 94 | . . . . . . . 2 1 1 . . . 1 . . 6 4 4 . 10 . 2 11 16 2 34 Critical Kills 34 | . . . . . . . 1 1 1 . . . 1 . . 1 3 1 . 4 . 2 5 5 1 8 Critical Parts Destroyed 36 | . . . . . . . 1 . . . . . . . . 1 1 3 . 4 . . 5 7 1 13 Melee Attacks 372 | . . . . . . . . . . . . . . . . . . 2 2 . 22 15 97 155 18 61 Kinetic 10 | . . . . . . . . . . . . . . . . . . . . . . . 3 7 . . Impact . | . . . . . . . . . . . . . . . . . . . . . . . . . . . Slashing 260 | . . . . . . . . . . . . . . . . . . . . . . . 82 99 18 61 Piercing 102 | . . . . . . . . . . . . . . . . . . 2 2 . 22 15 12 49 . . Sneak Attacks 27 | . . . . . . . . . . . . . . . . . . . 1 . 2 7 9 7 1 . Combat Hostiles 8 | . . . . . . . . . . . . . . . . . . . . . . 3 . 5 . . Follow-up Attacks 16 | . . . . . . . . . . . . . . . . . . . . . . . 6 10 . . Damage Inflicted 53852 | 229 1162 211 . 322 38 249 783 196 976 . 1654 1686 5777 . 5471 1113 420 935 71 1576 765 957 5976 8771 1498 13016 Guns 12514 | 228 388 198 . 322 . 249 783 196 976 . . 107 . . 46 587 420 384 . 863 . . . 403 . 6364 Cannons 8990 | . 708 . . . . . . . . . . . 273 . . 272 . . . . . 180 1188 2030 636 3703 Explosions 16058 | . . . . . . . . . . . 1654 1579 5504 . 5425 254 . 551 . 713 378 . . . . . Melee 16080 | . . . . . . . . . . . . . . . . . . . 71 . 387 777 4783 6318 795 2949 Ramming 186 | 1 42 13 . . 38 . . . . . . . . . . . . . . . . . 5 20 67 . Kinetic 8703 | 228 388 198 . 322 . 249 783 196 976 . . . 273 . 46 587 420 384 . 863 . 180 61 956 . 1593 Thermal 5836 | . 732 . . . . . . . . . . . . . . . . . . . . . 637 596 636 3235 Explosive 15385 | . . . . . . . . . . . 1654 1457 5504 . 5425 254 . . . 713 378 . . . . . Electromagnetic 3261 | . . . . . . . . . . . . 229 . . . 272 . 551 . . . . 551 1190 . 468 Impact . | . . . . . . . . . . . . . . . . . . . . . . . . . . . Slashing 17998 | . . . . . . . . . . . . . . . . . . . . . . . 4610 4873 795 7720 Piercing 2483 | . . . . . . . . . . . . . . . . . . . 71 . 387 777 112 1136 . . Highest Corruption 42 | . . . . . . . . 1 1 . . 1 1 1 . . . 1 . 1 . 1 6 12 . 42 Average Corruption 7 | . . . . . . . . 1 1 . . 1 1 1 . . . 1 . 1 . 1 2 8 . 24 Corruption Purged 1 | . . . . . . . . . . . . . . 1 . . . . . . . . . . . . Effects 317 | . . . . . . . . . 4 . . . 7 . . . . 1 . 3 . 1 26 129 . 146 Message Errors 50 | . . . . . . . . . 1 . . . . . . . . . . 1 . 1 10 26 . 11 Matter Fused 30 | . . . . . . . . . . . . . . . . . . . . . . . 4 18 . 8 Heat Flow Errors 22 | . . . . . . . . . . . . . . . . . . . . . . . 2 14 . 6 Energy Discharges 23 | . . . . . . . . . . . . . 2 . . . . . . . . . 3 13 . 5 Parts Rejected 5 | . . . . . . . . . . . . . . . . . . . . . . . . 3 . 2 Data Loss (minor) 25 | . . . . . . . . . 2 . . . 2 . . . . . . 1 . . 3 10 . 7 Data Loss (major) 8 | . . . . . . . . . . . . . . . . . . . . . . . . 7 . 1 Misfires 2 | . . . . . . . . . . . . . . . . . . . . . . . . . . 2 Alerts 3 | . . . . . . . . . . . . . . . . . . . . . . . . 1 . 2 Misdirections 12 | . . . . . . . . . . . . . . . . . . . . . . . . 8 . 4 Targeting Errors 118 | . . . . . . . . . 1 . . . 3 . . . . 1 . 1 . . 4 27 . 81 Weapon Failures 19 | . . . . . . . . . . . . . . . . . . . . . . . . 2 . 17 Overload Shots . | . . . . . . . . . . . . . . . . . . . . . . . . . . . Overflow Damage 2205 | . 1 . . . . . . . . . 49 116 85 . 274 19 . 62 . 116 37 . 1161 156 28 101 Projectiles 262 | . 1 . . . . . . . . . . . . . . 19 . . . . . . 145 8 18 71 Explosions 702 | . . . . . . . . . . . 49 116 85 . 274 . . 62 . 116 . . . . . . Melee 1241 | . . . . . . . . . . . . . . . . . . . . . 37 . 1016 148 10 30 Knockbacks 8 | . . . . . . . . . . . . . 6 . . . . . . . . . . 2 . . Impact . | . . . . . . . . . . . . . . . . . . . . . . . . . . . Kinetic 8 | . . . . . . . . . . . . . 6 . . . . . . . . . . 2 . . Secondary . | . . . . . . . . . . . . . . . . . . . . . . . . . . . Self-Inflicted Damage 346 | . . . . . . . . . . 31 . 30 . . 27 . . 96 . 19 143 . . . . . Shots 9 | . . . . . . . . . . 1 . 1 . . 1 . . 1 . 1 4 . . . . . Rammed 24 | 1 10 1 . . 5 . . . 1 . . . . . . . . . . . . . 1 2 3 . Targets Rammed 28 | 1 12 1 . . 7 . . . 1 . . . . . . . . . . . . . 1 2 3 . Kicked . | . . . . . . . . . . . . . . . . . . . . . . . . . . . Crushed 4 | . 2 . . . 2 . . . . . . . . . . . . . . . . . . . . . Highest Temperature 369 | . 84 12 . 16 . 18 157 68 152 7 38 183 198 2 192 189 186 135 . 178 152 199 195 342 198 369 Average Temperature 75 | . 24 7 . 9 . 8 67 27 54 5 15 77 60 2 44 121 68 56 . 49 28 95 83 104 88 118 Received Heat Transfer 2018 | . 255 39 . 20 . 38 339 18 . 27 90 54 . . 39 . . 27 . 18 9 81 234 385 24 321 Effects 4 | . . . . . . . . . . . . . . . . . . . . . . . . 1 . 3 Energy Bleed 2 | . . . . . . . . . . . . . . . . . . . . . . . . . . 2 Matter Decay 2 | . . . . . . . . . . . . . . . . . . . . . . . . 1 . 1 Siege Activations 26 | . . . . . . . . . . . . . . . . . . . . . . . 4 9 1 12 Total Turns 424 | . . . . . . . . . . . . . . . . . . . . . . . 65 121 12 226 Longest Duration 55 | . . . . . . . . . . . . . . . . . . . . . . . 25 33 12 55 Robots Corrupted 15 | . . . . . . . . . . . . 1 . . . 2 . 2 . . . . 3 5 . 2 Combat Hostiles 13 | . . . . . . . . . . . . 1 . . . 2 . . . . . . 3 5 . 2 Parts Fried 28 | . . . . . . . . . . . . 3 . . 2 2 . 5 . . . . 4 9 . 3 Impact Corruptions 1 | . . . . . . . . . . . . . . . . . . . . . . . . . 1 . Robots Melted . | . . . . . . . . . . . . . . . . . . . . . . . . . . . Combat Hostiles . | . . . . . . . . . . . . . . . . . . . . . . . . . . . Parts Melted 10 | . . . . . . . . . . . . . . . . . . . . . . . 2 4 1 3 Heat Transferred 5131 | . 1530 . . . . . . . . . . . . . . . . . . . . . 407 444 518 2232 Parts Sabotaged . | . . . . . . . . . . . . . . . . . . . . . . . . . . . Parts Stolen . | . . . . . . . . . . . . . . . . . . . . . . . . . . . Parts Stripped . | . . . . . . . . . . . . . . . . . . . . . . . . . . . Power Chain Reactions . | . . . . . . . . . . . . . . . . . . . . . . . . . . . Missiles Intercepted . | . . . . . . . . . . . . . . . . . . . . . . . . . . . Alert | -11 -10 -9 -9 -9 -9 -7 -7 -7 -7 -6 -6 -5 -5 -5 -5 -5 -5 -5 -4 -4 -3 -2 -2 -2 -1 -1 ------- Run | Scr Mat Mat Sto Gar Rec Fac Gar Fac Gar Fac Gar Fac Was Fac Ext Cet Arc Hub Fac Gar Res Res Qua Sec Acc Com Peak Influence 1123 | 30 449 224 94 363 325 980 876 559 481 314 661 848 428 462 598 427 420 1106 577 1123 727 530 454 432 498 507 Initial 910 | . 19 74 94 3 163 910 686 459 251 252 219 346 226 159 226 334 169 90 531 403 620 384 150 157 213 53 Average 350 | 19 244 109 14 197 210 931 807 470 388 266 418 595 376 271 363 334 368 513 540 811 615 396 257 263 297 306 Maximum Alert Level 4 | . 2 1 . 1 1 3 3 2 2 1 2 3 2 2 2 2 2 4 2 4 3 2 2 2 2 3 Low Security (%) 16 | 100 21 89 100 44 32 . . . . . . . . 25 . 21 4 26 . . . . 34 35 3 2 Level 1 33 | . 75 10 . 55 67 . . 15 44 100 33 32 34 62 65 26 23 13 . . . 40 58 50 75 8 Level 2 19 | . 2 . . . . . 20 84 55 . 66 28 65 12 33 51 72 36 100 33 87 59 6 13 20 5 Level 3 30 | . . . . . . 100 79 . . . . 38 . . . . . 15 . 47 12 . . . . 84 Level 4 . | . . . . . . . . . . . . . . . . . . 9 . 18 . . . . . . Level 5 . | . . . . . . . . . . . . . . . . . . . . . . . . . . . High Security . | . . . . . . . . . . . . . . . . . . . . . . . . . . . Max Security . | . . . . . . . . . . . . . . . . . . . . . . . . . . . Squads Dispatched 36 | . 5 . . . . . . 2 . 2 . 2 . 1 3 . . 4 1 . . 5 4 7 . . Investigation 8 | . 4 . . . . . . . . . . . . 1 1 . . . . . . 2 . . . . Extermination 8 | . . . . . . . . 1 . . . . . . . . . . . . . 1 2 4 . . Reinforcement 15 | . 1 . . . . . . 1 . 2 . 1 . . 2 . . 3 . . . 1 1 3 . . Assault 4 | . . . . . . . . . . . . 1 . . . . . 1 . . . 1 1 . . . Garrison 1 | . . . . . . . . . . . . . . . . . . . 1 . . . . . . . Intercept . | . . . . . . . . . . . . . . . . . . . . . . . . . . . Construction Impeded 5 | . . . . . . . . . . . . 1 . . 1 . . 2 . . . . 1 . . . Haulers Reinforced . | . . . . . . . . . . . . . . . . . . . . . . . . . . . Stealth | -11 -10 -9 -9 -9 -9 -7 -7 -7 -7 -6 -6 -5 -5 -5 -5 -5 -5 -5 -4 -4 -3 -2 -2 -2 -1 -1 --------- Run | Scr Mat Mat Sto Gar Rec Fac Gar Fac Gar Fac Gar Fac Was Fac Ext Cet Arc Hub Fac Gar Res Res Qua Sec Acc Com Distress Signals 39 | . 1 . . . . . . . . 1 . . . 1 2 . . 5 . . . 1 . . 1 27 Communications Jammed . | . . . . . . . . . . . . . . . . . . . . . . . . . . . Distress Signals . | . . . . . . . . . . . . . . . . . . . . . . . . . . . Times Spotted 463 | . 31 7 . 10 18 2 14 6 12 5 20 20 6 3 27 7 10 25 . 25 13 32 39 60 12 59 Peak Tracking Total 12 | . 5 4 . 4 6 2 11 2 5 5 8 5 3 2 5 5 2 9 . 5 6 12 5 6 5 9 Tactical Retreats 35 | . . . . . . . . . 2 . 3 3 . . 2 . . 2 . 3 3 5 4 5 2 1 Traps | -11 -10 -9 -9 -9 -9 -7 -7 -7 -7 -6 -6 -5 -5 -5 -5 -5 -5 -5 -4 -4 -3 -2 -2 -2 -1 -1 ------- Run | Scr Mat Mat Sto Gar Rec Fac Gar Fac Gar Fac Gar Fac Was Fac Ext Cet Arc Hub Fac Gar Res Res Qua Sec Acc Com Traps Triggered 34 | . 1 1 1 3 . . 1 . 4 . 1 2 . . 2 . . . . 2 2 . . . 1 13 Indirectly . | . . . . . . . . . . . . . . . . . . . . . . . . . . . Trap Hack Attempts . | . . . . . . . . . . . . . . . . . . . . . . . . . . . Triggered . | . . . . . . . . . . . . . . . . . . . . . . . . . . . Disarmed . | . . . . . . . . . . . . . . . . . . . . . . . . . . . Reprogrammed . | . . . . . . . . . . . . . . . . . . . . . . . . . . . Reused . | . . . . . . . . . . . . . . . . . . . . . . . . . . . Traps Extracted . | . . . . . . . . . . . . . . . . . . . . . . . . . . . Installed . | . . . . . . . . . . . . . . . . . . . . . . . . . . . Triggered . | . . . . . . . . . . . . . . . . . . . . . . . . . . . Machines | -11 -10 -9 -9 -9 -9 -7 -7 -7 -7 -6 -6 -5 -5 -5 -5 -5 -5 -5 -4 -4 -3 -2 -2 -2 -1 -1 ---------- Run | Scr Mat Mat Sto Gar Rec Fac Gar Fac Gar Fac Gar Fac Was Fac Ext Cet Arc Hub Fac Gar Res Res Qua Sec Acc Com Machines Disabled 58 | . . . . 1 . . . . . . 3 4 . . 2 3 4 11 . 6 . . 5 13 1 5 Max in Single Turn 9 | . . . . 1 . . . . . . 1 4 . . 1 2 1 9 . 2 . . 1 1 1 1 Garrison Access 5 | . . . . . . . . . . . . . . 1 . . . 1 . . 1 . 1 1 . . Garrison Relay 4 | . . . . 1 . . . . . . 1 . . . . . . . . 2 . . . . . . Phase Generator 1 | . . . . . . . . . . . . . . . . . . . . 1 . . . . . . Network Hub 1 | . . . . . . . . . . . . . . . . . . 1 . . . . . . . . Machines Sabotaged . | . . . . . . . . . . . . . . . . . . . . . . . . . . . Garrisons Compromised . | . . . . . . . . . . . . . . . . . . . . . . . . . . . Overloaded Fab Kills . | . . . . . . . . . . . . . . . . . . . . . . . . . . . Fab Network Shutdowns . | . . . . . . . . . . . . . . . . . . . . . . . . . . . Hacking | -11 -10 -9 -9 -9 -9 -7 -7 -7 -7 -6 -6 -5 -5 -5 -5 -5 -5 -5 -4 -4 -3 -2 -2 -2 -1 -1 --------- Run | Scr Mat Mat Sto Gar Rec Fac Gar Fac Gar Fac Gar Fac Was Fac Ext Cet Arc Hub Fac Gar Res Res Qua Sec Acc Com Machines Accessed 82 | . 9 3 3 . 6 2 . 3 . 1 . 5 . 3 5 3 . 4 1 . 6 5 11 7 3 2 Terminals 56 | . 7 2 2 . 2 . . 1 . . . 2 . 2 5 3 . 3 . . 3 5 8 6 3 2 Fabricators 3 | . . . . . . 1 . . . . . 1 . . . . . . . . 1 . . . . . Repair Stations 3 | . . . . . . . . 1 . . . 1 . . . . . . . . . . 1 . . . Recycling Units 6 | . 2 . . . 4 . . . . . . . . . . . . . . . . . . . . . Scanalyzers 4 | . . 1 . . . . . . . . . 1 . . . . . . . . 1 . 1 . . . Garrison Access 10 | . . . 1 . . 1 . 1 . 1 . . . 1 . . . 1 1 . 1 . 1 1 . . Total Hacks 252 | . 27 6 8 . 16 5 . 6 . 2 . 6 . 6 13 8 . 14 2 . 20 22 44 31 9 7 Successful 134 | . 21 4 6 . 11 3 . 4 . 2 . 1 . 2 6 6 . 3 2 . 11 6 25 13 4 4 Failed 117 | . 5 2 2 . 5 2 . 2 . . . 5 . 4 7 2 . 11 . . 9 16 19 18 5 3 Catastrophic 23 | . 2 . . . . . . . . . . 2 . 1 2 . . . . . 3 4 2 5 2 . Database Lockouts 1 | . 1 . . . . . . . . . . . . . . . . . . . . . . . . . Manual 114 | . 17 2 2 . 11 . . 2 . . . 1 . 1 6 7 . 9 1 . 4 17 17 10 4 3 Terminals 193 | . 23 4 6 . 8 . . 2 . . . 3 . 4 13 8 . 11 . . 12 22 32 29 9 7 Fabricators 5 | . . . . . . 3 . . . . . 1 . . . . . . . . 1 . . . . . Repair Stations 7 | . . . . . . . . 2 . . . 1 . . . . . . . . . . 4 . . . Recycling Units 12 | . 4 . . . 8 . . . . . . . . . . . . . . . . . . . . . Scanalyzers 15 | . . 2 . . . . . . . . . 1 . . . . . . . . 5 . 7 . . . Garrison Access 20 | . . . 2 . . 2 . 2 . 2 . . . 2 . . . 3 2 . 2 . 1 2 . . Terminal Hacks 65 | . 13 1 4 . 3 . . . . . . 1 . . 4 3 . 2 . . 5 2 14 7 4 2 Robot Schematic 1 | . 1 . . . . . . . . . . . . . . . . . . . . . . . . . Robot Analysis 4 | . 2 . . . . . . . . . . . . . . . . . . . . . 2 . . . Prototype ID Bank 11 | . 5 . . . 1 . . . . . . . . . . . . . . . 1 . 4 . . . Open Door 9 | . . . 1 . . . . . . . . . . . 2 1 . . . . . . . 3 1 1 Level Access Points 4 | . . . . . . . . . . . . . . . . . . 1 . . . . 1 1 . 1 Branch Access Points 2 | . . 1 . . . . . . . . . . . . . . . . . . . 1 . . . . Terminal Index 1 | . . . . . . . . . . . . . . . . . . . . . . . . . 1 . Unreport Threat 17 | . . . 1 . 2 . . . . . . . . . 2 2 . . . . 2 1 3 2 2 . Locate Traps 7 | . 2 . 1 . . . . . . . . 1 . . . . . . . . 1 . 2 . . . Patrol Status 1 | . . . . . . . . . . . . . . . . . . . . . . . . 1 . . Recall Investigation 1 | . 1 . . . . . . . . . . . . . . . . . . . . . . . . . Recall Reinforcements 1 | . . . . . . . . . . . . . . . . . . 1 . . . . . . . . Hauler Manifests 1 | . 1 . . . . . . . . . . . . . . . . . . . . . . . . . Registered Components 1 | . . . . . . . . . . . . . . . . . . . . . 1 . . . . . Zone Layout 4 | . 1 . 1 . . . . . . . . . . . . . . . . . . . 2 . . . Fabricator Hacks 1 | . . . . . . 1 . . . . . . . . . . . . . . . . . . . . Load Schematic 1 | . . . . . . 1 . . . . . . . . . . . . . . . . . . . . Repair Station Hacks 3 | . . . . . . . . 1 . . . . . . . . . . . . . . 2 . . . Scan Component 1 | . . . . . . . . . . . . . . . . . . . . . . . 1 . . . Repair 1 | . . . . . . . . . . . . . . . . . . . . . . . 1 . . . Refit 1 | . . . . . . . . 1 . . . . . . . . . . . . . . . . . . Recycling Unit Hacks 6 | . 2 . . . 4 . . . . . . . . . . . . . . . . . . . . . Report Inventory 5 | . 2 . . . 3 . . . . . . . . . . . . . . . . . . . . . Retrieve Components 1 | . . . . . 1 . . . . . . . . . . . . . . . . . . . . . Scanalyzer 6 | . . 2 . . . . . . . . . . . . . . . . . . 2 . 2 . . . Insert Component 4 | . . 1 . . . . . . . . . . . . . . . . . . 2 . 1 . . . Analyze 2 | . . 1 . . . . . . . . . . . . . . . . . . . . 1 . . . Garrison Access Hacks 16 | . . . 1 . . 2 . 2 . 2 . . . 2 . . . 1 1 . 2 . 1 2 . . Unlock Access 5 | . . . 1 . . 1 . 1 . 1 . . . . . . . . 1 . . . . . . . Seal Access 4 | . . . . . . . . . . . . . . 1 . . . 1 . . 1 . . 1 . . Coupler Status 7 | . . . . . . 1 . 1 . 1 . . . 1 . . . . . . 1 . 1 1 . . Unauthorized Hacks 37 | . 6 1 1 . 4 . . 1 . . . . . . 2 3 . . 1 . 2 4 6 4 . 2 Terminals 29 | . 4 1 1 . . . . 1 . . . . . . 2 3 . . . . 1 4 6 4 . 2 Track 13 | . 3 . . . . . . . . . . . . . . 2 . . . . . . 4 2 . 2 Assimilate 4 | . 1 . . . . . . . . . . . . . 1 . . . . . . 2 . . . . Botnet 10 | . . 1 1 . . . . 1 . . . . . . 1 1 . . . . 1 . 2 2 . . Disrupt 2 | . . . . . . . . . . . . . . . . . . . . . . 2 . . . . Fabricators 1 | . . . . . . . . . . . . . . . . . . . . . 1 . . . . . Report 1 | . . . . . . . . . . . . . . . . . . . . . 1 . . . . . Repair Stations . | . . . . . . . . . . . . . . . . . . . . . . . . . . . Recycling Units 6 | . 2 . . . 4 . . . . . . . . . . . . . . . . . . . . . Tunnel 6 | . 2 . . . 4 . . . . . . . . . . . . . . . . . . . . . Scanalyzers . | . . . . . . . . . . . . . . . . . . . . . . . . . . . Garrison Access 1 | . . . . . . . . . . . . . . . . . . . 1 . . . . . . . Reprogram 1 | . . . . . . . . . . . . . . . . . . . 1 . . . . . . . Data Cores Recovered 2 | . 1 . . . . . . . . . . . . . . . . . . . . . 1 . . . Used 1 | . 1 . . . . . . . . . . . . . . . . . . . . . . . . . Hacking Detections 63 | . 6 2 2 . 2 1 . 3 . 1 . 5 . 2 5 2 . 4 . . 4 5 9 6 2 2 Full Trace Events 7 | . 2 . . . 1 . . . . . . . . 1 1 . . . . . . 2 . . . . Feedback Events 1 | . . . . . . . . . . . . . . . . . . . . . . 1 . . . . Corruption 1 | . . . . . . . . . . . . . . . . . . . . . . 1 . . . . Feedback Blocked . | . . . . . . . . . . . . . . . . . . . . . . . . . . . Robot Schematics Acquired 1 | . 1 . . . . . . . . . . . . . . . . . . . . . . . . . Robots Built . | . . . . . . . . . . . . . . . . . . . . . . . . . . . Matter . | . . . . . . . . . . . . . . . . . . . . . . . . . . . Time . | . . . . . . . . . . . . . . . . . . . . . . . . . . . Total Robot Build Rating . | . . . . . . . . . . . . . . . . . . . . . . . . . . . Part Schematics Acquired 2 | . . 1 . . . . . . . . . . . . . . . . . . . . 1 . . . Parts Built . | . . . . . . . . . . . . . . . . . . . . . . . . . . . Matter . | . . . . . . . . . . . . . . . . . . . . . . . . . . . Time . | . . . . . . . . . . . . . . . . . . . . . . . . . . . Total Part Build Rating . | . . . . . . . . . . . . . . . . . . . . . . . . . . . Parts Repaired 1 | . . . . . . . . . . . . . . . . . . . . . . . 1 . . . Time 14 | . . . . . . . . . . . . . . . . . . . . . . . 14 . . . Parts Recycled . | . . . . . . . . . . . . . . . . . . . . . . . . . . . Recycled Matter . | . . . . . . . . . . . . . . . . . . . . . . . . . . . Retrieved Matter . | . . . . . . . . . . . . . . . . . . . . . . . . . . . Retrieved Components 3 | . . . . . 3 . . . . . . . . . . . . . . . . . . . . . Parts Scanalyzed 3 | . . 1 . . . . . . . . . . . . . . . . . . 1 . 1 . . . Part Schematics Acquired 2 | . . 1 . . . . . . . . . . . . . . . . . . . . 1 . . . Parts Damaged . | . . . . . . . . . . . . . . . . . . . . . . . . . . . Bothacking | -11 -10 -9 -9 -9 -9 -7 -7 -7 -7 -6 -6 -5 -5 -5 -5 -5 -5 -5 -4 -4 -3 -2 -2 -2 -1 -1 ------------ Run | Scr Mat Mat Sto Gar Rec Fac Gar Fac Gar Fac Gar Fac Was Fac Ext Cet Arc Hub Fac Gar Res Res Qua Sec Acc Com Used RIF Installer 5 | . . . . 1 . . 1 . 1 . 1 . . . . . . . . 1 . . . . . . Hotswap 1 | . . . . . . . . . 1 . . . . . . . . . . . . . . . . . Zone Cloak 1 | . . . . . . . . . . . 1 . . . . . . . . . . . . . . . Patrol Navigation 1 | . . . . . . . 1 . . . . . . . . . . . . . . . . . . . Autoassimilate 1 | . . . . . . . . . . . . . . . . . . . . 1 . . . . . . Robots Hacked 27 | . . . . . . . . . . . . 1 . . . . . . . 7 . 11 4 4 . . Non-combat 5 | . . . . . . . . . . . . 1 . . . . . . . . . 1 2 1 . . Combat 22 | . . . . . . . . . . . . . . . . . . . . 7 . 10 2 3 . . Autoassimilated 3 | . . . . . . . . . . . . . . . . . . . . . . 3 . . . . Robot Hacks Applied 29 | . . . . . . . . . . . . 1 . . . . . . . 7 . 8 8 5 . . find_chute 1 | . . . . . . . . . . . . 1 . . . . . . . . . . . . . . purge_threat 2 | . . . . . . . . . . . . . . . . . . . . . . 1 . 1 . . block_reporting 2 | . . . . . . . . . . . . . . . . . . . . . . . 2 . . . disable_scanner 5 | . . . . . . . . . . . . . . . . . . . . . . . 2 3 . . locate_prototypes 2 | . . . . . . . . . . . . . . . . . . . . . . . 1 1 . . report_analyses 3 | . . . . . . . . . . . . . . . . . . . . . . . 3 . . . reboot_system 3 | . . . . . . . . . . . . . . . . . . . . 1 . 2 . . . . overwrite_iff 9 | . . . . . . . . . . . . . . . . . . . . 4 . 5 . . . . formatsys_high 2 | . . . . . . . . . . . . . . . . . . . . 2 . . . . . . Relay Couplers Released 20 | . . . . 5 . . . . . . 3 . . . . . . . . 10 . . 2 . . . Machine Destruction 20 | . . . . 5 . . . . . . 3 . . . . . . . . 10 . . 2 . . . Attached 7 | . . . . . . . . . . 1 . . . . . . . . . 3 . 1 1 1 . . Robots Rewired 1 | . . . . . . . . . . . . . . . . . . . . . . . . 1 . . Allies Hacked . | . . . . . . . . . . . . . . . . . . . . . . . . . . . Hacks Repelled . | . . . . . . . . . . . . . . . . . . . . . . . . . . . Allies | -11 -10 -9 -9 -9 -9 -7 -7 -7 -7 -6 -6 -5 -5 -5 -5 -5 -5 -5 -4 -4 -3 -2 -2 -2 -1 -1 -------- Run | Scr Mat Mat Sto Gar Rec Fac Gar Fac Gar Fac Gar Fac Was Fac Ext Cet Arc Hub Fac Gar Res Res Qua Sec Acc Com Total Allies 45 | . 1 . . . . . . . . . . . 18 . 3 5 . . 1 6 . 10 . 1 . . Largest Group 18 | . 1 . . . . . . . . . . . 18 14 6 6 4 4 1 5 . 3 . 1 . . Highest-Rated Group 650 | . 10 . . . . . . . . . . . 650 492 243 606 376 376 49 60 . 70 . 222 . . Highest-Rated Ally 222 | . 10 . . . . . . . . . . . 50 46 156 150 94 94 49 49 . 58 . 222 . . Total Orders 4 | . 2 . . . . . . . . . . . . . . . 2 . . . . . . . . . STAY 1 | . 1 . . . . . . . . . . . . . . . . . . . . . . . . . ROAM 1 | . . . . . . . . . . . . . . . . . 1 . . . . . . . . . FOLLOW 2 | . 1 . . . . . . . . . . . . . . . 1 . . . . . . . . . Ally Attacks 296 | . . . . . . . . . . . . . . 53 69 27 17 61 . 38 . 31 . . . . Total Damage 7054 | . . . . . . . . . . . . . . 1036 1373 465 595 2350 . 722 . 513 . . . . Kills 46 | . . . . . . . . . . . . . . 8 9 6 3 12 . 5 . 3 . . . . Allies Corrupted 2 | . . . . . . . . . . . . . . . 1 . . 1 . . . . . . . . Allies Melted . | . . . . . . . . . . . . . . . . . . . . . . . . . . . Intel | -11 -10 -9 -9 -9 -9 -7 -7 -7 -7 -6 -6 -5 -5 -5 -5 -5 -5 -5 -4 -4 -3 -2 -2 -2 -1 -1 ------- Run | Scr Mat Mat Sto Gar Rec Fac Gar Fac Gar Fac Gar Fac Was Fac Ext Cet Arc Hub Fac Gar Res Res Qua Sec Acc Com Robot Analysis Total 4 | . 2 . . . . . . . . . . . . . . . . . . . . . 2 . . . Derelict Logs Recovered . | . . . . . . . . . . . . . . . . . . . . . . . . . . . Drone Launches . | . . . . . . . . . . . . . . . . . . . . . . . . . . . Drone Recoveries . | . . . . . . . . . . . . . . . . . . . . . . . . . . . Exploration | -11 -10 -9 -9 -9 -9 -7 -7 -7 -7 -6 -6 -5 -5 -5 -5 -5 -5 -5 -4 -4 -3 -2 -2 -2 -1 -1 ------------- Run | Scr Mat Mat Sto Gar Rec Fac Gar Fac Gar Fac Gar Fac Was Fac Ext Cet Arc Hub Fac Gar Res Res Qua Sec Acc Com Turns Passed 20068 | 249 1641 259 133 553 262 314 320 471 477 92 183 422 448 166 652 295 498 332 18 552 365 375 1760 2731 467 6033 Spaces Moved 11260 | 127 754 121 65 278 139 116 124 256 197 95 222 481 462 229 633 219 132 376 11 499 407 472 897 1049 188 2711 Core 35 | 9 . . . . . . 1 . . . . . . . . . 25 . . . . . . . . . Treads 6245 | 118 754 121 65 278 139 49 63 . . . . . . . . . . . . . . . 710 1049 188 2711 Legs 513 | . . . . . . . 60 256 197 . . . . . . . . . . . . . . . . . Wheels 67 | . . . . . . 67 . . . . . . . . . . . . . . . . . . . . Hover 4400 | . . . . . . . . . . 95 222 481 462 229 633 219 107 376 11 499 407 472 187 . . . Flight . | . . . . . . . . . . . . . . . . . . . . . . . . . . . Fastest Speed 50 | 50 160 180 160 180 180 100 150 150 150 68 68 68 68 68 68 68 68 68 68 68 58 55 55 160 185 160 Average Speed 135 | 152 179 180 179 180 180 128 172 150 161 68 68 68 68 68 68 68 329 68 68 68 60 57 133 164 185 189 Slowest Speed 1450 | 160 180 180 180 180 180 180 900 150 270 138 68 142 68 68 68 138 1450 68 68 68 68 60 160 190 185 230 Overloaded Moves . | . . . . . . . . . . . . . . . . . . . . . . . . . . . Propulsion Burnouts . | . . . . . . . . . . . . . . . . . . . . . . . . . . . Robots Hopped . | . . . . . . . . . . . . . . . . . . . . . . . . . . . Cave-ins Triggered . | . . . . . . . . . . . . . . . . . . . . . . . . . . . Teleports 3 | . . . . . . . . . . . . . . . . . . . . . . . 1 2 . . Exploration Rate (%) 41 | 5 98 15 8 59 42 5 39 6 33 6 50 13 97 10 61 70 75 53 1 76 19 23 82 86 13 80 Regions Visited 26 Branch Regions 9 Pre-discovered Areas 6 | . 2 . . . 4 . . . . . . . . . . . . . . . . . . . . . Known Exits Taken 9 | . . 1 1 . . 1 . 1 . 1 . . . . . . . 1 1 . . 1 . 1 . . Unknown Exits Taken 10 | 1 1 . . . 1 . . . . . . . . 1 1 1 1 . . . 1 . 1 . 1 . Scrap Searched . | . . . . . . . . . . . . . . . . . . . . . . . . . . . Spaces Dug 136 | . 2 1 . . . . . . . 18 . 25 . . . . . 6 1 . 10 6 19 24 8 16 Terrain Destroyed 1283 | . 2 1 . . . . . . . 18 129 80 209 . 281 38 6 189 1 178 58 8 20 28 17 20 Melee 84 | . . . . . . . . . . . . . . . . . . 1 1 . 10 6 19 24 7 16 Projectile 81 | . 2 1 . . . . . . . . . . 5 . . 24 6 16 . 3 3 2 1 4 10 4 AOE 1118 | . . . . . . . . . . 18 129 80 204 . 281 14 . 172 . 175 45 . . . . . Terrain Rammed . | . . . . . . . . . . . . . . . . . . . . . . . . . . . Walls Destroyed . | . . . . . . . . . . . . . . . . . . . . . . . . . . . Machines Disabled . | . . . . . . . . . . . . . . . . . . . . . . . . . . . Actions | -11 -10 -9 -9 -9 -9 -7 -7 -7 -7 -6 -6 -5 -5 -5 -5 -5 -5 -5 -4 -4 -3 -2 -2 -2 -1 -1 --------- Run | Scr Mat Mat Sto Gar Rec Fac Gar Fac Gar Fac Gar Fac Was Fac Ext Cet Arc Hub Fac Gar Res Res Qua Sec Acc Com Total 14525 | 152 918 150 83 305 146 267 184 332 291 123 237 548 553 239 821 314 172 418 14 651 473 536 1248 1702 272 3376 Wait 1150 | . 56 10 . 4 . 127 4 50 4 . . 9 38 4 130 23 28 18 . 64 12 5 112 265 21 166 Move 11237 | 126 753 120 64 277 138 116 123 256 196 95 221 481 461 228 632 218 131 375 10 498 406 471 896 1048 187 2710 Hop . | . . . . . . . . . . . . . . . . . . . . . . . . . . . Pick Up 201 | 3 15 4 3 2 1 2 7 4 12 3 2 6 2 3 1 7 2 3 . 3 1 5 23 30 5 52 Fast Attach 148 | 7 4 1 4 . . 6 7 3 4 1 . 8 2 . 2 7 . . 1 2 5 4 21 19 . 40 Attach 156 | . 2 3 1 . . 3 8 1 3 7 . 7 1 . 3 4 . 1 . 4 2 5 16 45 4 36 Detach 101 | . 3 1 1 . . 3 1 1 . 1 . 4 2 . 5 . . . . 3 2 4 10 34 2 24 Swap 136 | . 9 2 1 1 . . 2 2 8 4 . 2 5 1 2 3 . 4 . 12 9 4 19 22 1 23 Drop 239 | . 8 3 7 3 . 4 5 8 8 11 1 10 3 3 5 12 1 2 . 4 7 6 31 29 5 63 Fire 710 | 15 56 5 . 12 . 6 22 7 35 1 13 21 39 . 33 40 10 13 1 37 7 17 32 79 26 183 Melee 336 | . . . . . . . . . . . . . . . . . . 2 2 . 22 15 87 129 18 61 Ram . | . . . . . . . . . . . . . . . . . . . . . . . . . . . Kick 1 | . . . . . . . . . 1 . . . . . . . . . . . . . . . . . Crush 27 | 1 12 1 . . 7 . . . . . . . . . . . . . . . . . 1 2 3 . Escape Stasis 83 | . . . 2 6 . . 5 . 20 . . . . . 8 . . . . 24 . . . . . 18 Rewire . | . . . . . . . . . . . . . . . . . . . . . . . . . . . Trap . | . . . . . . . . . . . . . . . . . . . . . . . . . . . Miscellaneous . | . . . . . . . . . . . . . . . . . . . . . . . . . . . Route ------- -11/Scrapyard -10/Materials (discovered 4 exits: *Mat x3 / [*Min]) -9/Materials (discovered 3 exits: Min / *Sto x2) -9/Storage -9/Garrison (discovered 2 exits: *Rec x2) -9/Recycling -7/Factory -7/Garrison -7/Factory -7/Garrison -6/Factory -6/Garrison (discovered 2 exits: *Fac x2) -5/Factory -5/Waste -5/Factory (discovered 2 exits: *Fac / *Ext) -5/Extension (discovered 2 exits: *Fac / *Cet) -5/Cetus -5/Archives (discovered 2 exits: *Hub x2) -5/Hub_04(d) (discovered 4 exits: *Fac x4) -4/Factory -4/Garrison (discovered 2 exits: *Res x2) -3/Research -2/Research (discovered 3 exits: *Acc / *Qua x2) -2/Quarantine (discovered 2 exits: Acc / *Sec) -2/Section 7 -1/Access -1/Command (discovered 2 exits: *Sur x2) To Fleet Rendezvous History --------- Turn | Location | Event 7 | -11/Scrapyard | Discovered new exit (range 16) 250 | -11/Scrapyard | Entered Materials 318 | -10/Materials | Build established: Mutant 495 | -10/Materials | Discovered new exit (range 11) 770 | -10/Materials | Discovered new exit (range 11) 1203 | -10/Materials | Discovered new exit (range 13) 1428 | -10/Materials | Core integrity fell below 50% 1729 | -10/Materials | Discovered new exit (range 6) 1796 | -10/Materials | Central database locked down 1891 | -10/Materials | Entered another Materials area 1891 | -9/Materials | Evolved 2 slots: Utility x1, Weapon x1 1991 | -9/Materials | Identified exit to Mines 1991 | -9/Materials | Identified exit to Storage 2150 | -9/Materials | Entered Storage 2186 | -9/Storage | Identified exit to Garrison 2191 | -9/Storage | Build established: Gunner 2283 | -9/Storage | Entered Garrison 2370 | -9/Garrison | Triggered checkpoint 2439 | -9/Garrison | Discovered new exit (range 8) 2526 | -9/Garrison | Triggered checkpoint 2582 | -9/Garrison | Build established: Tank 2613 | -9/Garrison | Discovered new exit (range 10) 2642 | -9/Garrison | Installed Relay Interface Framework 2714 | -9/Garrison | Triggered checkpoint 2743 | -9/Garrison | Garrison Relay disabled 2836 | -9/Garrison | Entered Recycling 2847 | -9/Recycling | Spotter reported a threat 2895 | -9/Recycling | Spotter reported a threat 2899 | -9/Recycling | Spotter reported a threat 2902 | -9/Recycling | Spotter reported a threat 2914 | -9/Recycling | Spotter reported a threat 2948 | -9/Recycling | Spotter reported a threat 2955 | -9/Recycling | Spotter reported a threat 2957 | -9/Recycling | Spotter reported a threat 2966 | -9/Recycling | Spotter reported a threat 2967 | -9/Recycling | Spotter reported a threat 2977 | -9/Recycling | Spotter reported a threat 3004 | -9/Recycling | Spotter reported a threat 3007 | -9/Recycling | Spotter reported a threat 3008 | -9/Recycling | Spotter reported a threat 3024 | -9/Recycling | Spotter reported a threat 3034 | -9/Recycling | Spotter reported a threat 3043 | -9/Recycling | Spotter reported a threat 3052 | -9/Recycling | Spotter reported a threat 3052 | -9/Recycling | Spotter reported a threat 3053 | -9/Recycling | Discovered new exit (range 16) 3060 | -9/Recycling | Spotter reported a threat 3089 | -9/Recycling | Spotter reported a threat 3093 | -9/Recycling | Spotter reported a threat 3098 | -9/Recycling | Entered Factory 3098 | -7/Factory | Evolved 4 slots: Power x1, Propulsion x1, Utility x2 3412 | -7/Factory | Identified exit to Garrison 3412 | -7/Factory | Entered Garrison 3427 | -7/Garrison | Build established: Scavenger-Tank 3457 | -7/Garrison | Triggered checkpoint 3464 | -7/Garrison | Triggered checkpoint 3535 | -7/Garrison | Destroyed 11 combat bots 3537 | -7/Garrison | Lost 11 parts (2p3n3u3w) 3704 | -7/Garrison | Discovered new exit (range 8) 3726 | -7/Garrison | Expanded RIF knowledge: Watcher Feeds 3732 | -7/Garrison | Entered Factory 4203 | -7/Factory | Identified exit to Garrison 4203 | -7/Factory | Entered Garrison 4211 | -7/Garrison | Expanded RIF knowledge: Hotswap 4314 | -7/Garrison | Triggered checkpoint 4423 | -7/Garrison | Core integrity fell below 50% 4474 | -7/Garrison | Lost 4 parts (2n1u1w) 4563 | -7/Garrison | Discovered new exit (range 12) 4680 | -7/Garrison | Entered Factory 4680 | -6/Factory | Evolved 2 slots: Propulsion x1, Utility x1 4772 | -6/Factory | Identified exit to Garrison 4772 | -6/Factory | Entered Garrison 4800 | -6/Garrison | Triggered checkpoint 4822 | -6/Garrison | Triggered checkpoint 4832 | -6/Garrison | Discovered new exit (range 15) 4834 | -6/Garrison | Garrison Relay disabled 4908 | -6/Garrison | Triggered checkpoint 4914 | -6/Garrison | Triggered checkpoint 4940 | -6/Garrison | Discovered new exit (range 12) 4945 | -6/Garrison | Build established: Scavenger-Mutant 4946 | -6/Garrison | Destroyed 8 combat bots 4952 | -6/Garrison | Expanded RIF knowledge: Zone Cloak 4955 | -6/Garrison | Entered Factory 4955 | -5/Factory | Evolved 2 slots: Utility x2 5232 | -5/Factory | Lost 3 parts (1p1u1w) 5255 | -5/Factory | First assault squad dispatched 5377 | -5/Factory | Manually triggered Chute Trap 5377 | -5/Factory | Sucked down chute 5377 | -5/Factory | Entered Waste 5398 | -5/Waste | Spotted C-40 Crusher 5398 | -5/Waste | Spotted C-40 Crusher 5408 | -5/Waste | Spotted C-40 Crusher 5425 | -5/Waste | Destroyed C-40 Crusher 5427 | -5/Waste | Destroyed C-40 Crusher 5459 | -5/Waste | Destroyed C-40 Crusher 5469 | -5/Waste | Spotted C-40 Crusher 5473 | -5/Waste | Spotted C-40 Crusher 5474 | -5/Waste | Spotted C-40 Crusher 5512 | -5/Waste | Destroyed C-40 Crusher 5519 | -5/Waste | Destroyed C-40 Crusher 5532 | -5/Waste | Destroyed C-40 Crusher 5559 | -5/Waste | Warlord forces began an assault 5594 | -5/Waste | Discovered new exit (range 11) 5825 | -5/Waste | Entered Factory 5825 | -5/Factory | Accompanied by 14 allies 5847 | -5/Factory | Discovered new exit (range 7) 5980 | -5/Factory | Discovered new exit (range 16) 5991 | -5/Factory | Entered Extension 5991 | -5/Extension | Accompanied by 4 allies 6071 | -5/Extension | Rescued a captive Derelict 6073 | -5/Extension | Rescued a captive Derelict 6120 | -5/Extension | Rescued A7 6387 | -5/Extension | Destroyed B-75 Beast 6434 | -5/Extension | Spotted B-75 Beast 6449 | -5/Extension | Destroyed B-75 Beast 6491 | -5/Extension | Disrupted transfer network 6623 | -5/Extension | Discovered new exit (range 16) 6623 | -5/Extension | Discovered new exit (range 15) 6643 | -5/Extension | Entered Cetus 6643 | -5/Cetus | Accompanied by 1 ally (A7) 6648 | -5/Cetus | Acquired a Cetus Manufacturing Module code from A7 6668 | -5/Cetus | Spotted Cetus Guard 6668 | -5/Cetus | Spotted Cetus Guard 6674 | -5/Cetus | Allies destroyed Cetus Guard 6682 | -5/Cetus | Allies destroyed Cetus Guard 6686 | -5/Cetus | Destroyed Cetus Guard 6689 | -5/Cetus | Destroyed Cetus Guard 6736 | -5/Cetus | Started Cetus Manufacturing Module 6741 | -5/Cetus | Escorted A7 to Cetus Mainframe 6761 | -5/Cetus | Manufactured an Enhanced Grunt 6786 | -5/Cetus | Manufactured an Enhanced Grunt 6811 | -5/Cetus | Manufactured an Enhanced Grunt 6836 | -5/Cetus | Manufactured an Enhanced Grunt 6850 | -5/Cetus | Discovered new exit (range 15) 6861 | -5/Cetus | Manufactured an Enhanced Grunt 6916 | -5/Cetus | Destroyed A7 6922 | -5/Cetus | Extracted ID and sensor layout for unrecognized location from A7's data core 6938 | -5/Cetus | Entered Archives 6938 | -5/Archives | Accompanied by 4 allies 6995 | -5/Archives | Discovered new exit (range 14) 7181 | -5/Archives | Build established: Scavenger-Tank 7379 | -5/Archives | Discovered new exit (range 14) 7436 | -5/Archives | Entered Hub_04(d) 7436 | -5/Hub_04(d) | Accompanied by 4 allies 7504 | -5/Hub_04(d) | Discovered new exit (range 28) 7505 | -5/Hub_04(d) | Identified exit to Factory 7695 | -5/Hub_04(d) | Network Hub disabled 7736 | -5/Hub_04(d) | First assault squad dispatched 7764 | -5/Hub_04(d) | Spotted Lightning 7766 | -5/Hub_04(d) | Spotted Lightning 7768 | -5/Hub_04(d) | Entered Factory 7768 | -4/Factory | Accompanied by 1 ally 7768 | -4/Factory | Evolved 2 slots: Utility x2 7773 | -4/Factory | Found Prototype Device 7773 | -4/Factory | Identified Exp. Thermal Shield 7782 | -4/Factory | Identified exit to Garrison 7786 | -4/Factory | Entered Garrison 7786 | -4/Garrison | Accompanied by 1 ally 7810 | -4/Garrison | Triggered checkpoint 7860 | -4/Garrison | Garrison Relay disabled 7923 | -4/Garrison | Spotted B-86 Titan 7973 | -4/Garrison | Phase Generator disabled 8013 | -4/Garrison | Triggered checkpoint 8178 | -4/Garrison | Triggered checkpoint 8239 | -4/Garrison | Discovered new exit (range 10) 8240 | -4/Garrison | Triggered checkpoint 8286 | -4/Garrison | Triggered checkpoint 8322 | -4/Garrison | Discovered new exit (range 12) 8335 | -4/Garrison | Expanded RIF knowledge: Autoassimilate 8338 | -4/Garrison | Entered Research 8338 | -3/Research | Evolved 2 slots: Utility x2 8663 | -3/Research | Build established: Scavenger-Mutant 8684 | -3/Research | Discovered new exit (range 15) 8703 | -3/Research | Entered another Research area 8703 | -2/Research | Evolved 2 slots: Utility x1, Weapon x1 8899 | -2/Research | Identified exit to Quarantine 8925 | -2/Research | Discovered new exit (range 15) 8953 | -2/Research | First assault squad dispatched 9078 | -2/Research | Entered Quarantine 9085 | -2/Quarantine | Found Alien Slashing Weapon 9085 | -2/Quarantine | Identified Sigix Broadsword 9111 | -2/Quarantine | Found Dimensional Node Initializer 9111 | -2/Quarantine | Initialized slip node 9121 | -2/Quarantine | Found Hpw. Transdimensional Reconstructor 9123 | -2/Quarantine | Found Transdimensional Reconstructor 9127 | -2/Quarantine | Found Transdimensional Reconstructor 9259 | -2/Quarantine | Found Core Stripper 9386 | -2/Quarantine | Found Dimensional Node Initializer 9397 | -2/Quarantine | Found Transdimensional Reconstructor 9586 | -2/Quarantine | Found Core Reset Matrix 9749 | -2/Quarantine | Warped through subspace to slip node 9848 | -2/Quarantine | Build established: Hacker-Mutant 9907 | -2/Quarantine | Identified exit to Access 10185 | -2/Quarantine | Repaired Hrd. Heavy Armor Plating 10459 | -2/Quarantine | Found Phase Redirector 10592 | -2/Quarantine | Destroyed 7 combat bots 10616 | -2/Quarantine | Spotted Fortress 10660 | -2/Quarantine | Destroyed Fortress 10672 | -2/Quarantine | Found Prototype Reactor 10672 | -2/Quarantine | Identified Vortex Chain Reactor 10693 | -2/Quarantine | Found Prototype Device 10693 | -2/Quarantine | Identified Thermal Barrier 10704 | -2/Quarantine | Found Prototype Device 10704 | -2/Quarantine | Identified Exp. Force Field 10708 | -2/Quarantine | Found Prototype Device 10709 | -2/Quarantine | Identified EM Dispersion Field 10719 | -2/Quarantine | Found Prototype Protection 10830 | -2/Quarantine | Discovered new exit (range 6) 10838 | -2/Quarantine | Entered Section 7 10879 | -2/Section 7 | Spotted S7 Guard 10888 | -2/Section 7 | Identified Centrium Heavy Armor Plating 10913 | -2/Section 7 | Destroyed S7 Guard 10922 | -2/Section 7 | Found Core Regenerator 10928 | -2/Section 7 | Found Prototype Protection 10928 | -2/Section 7 | Identified Hvy. Regenerative Plating 11131 | -2/Section 7 | Found Integrity Redistributor 11353 | -2/Section 7 | Used Integrity Redistributor, redistributed integrity from core (-193) 11364 | -2/Section 7 | Spotted B-90 Cyclops 11587 | -2/Section 7 | Spotted S7 Guard 11597 | -2/Section 7 | Found Integrated Singularity Reactor 11608 | -2/Section 7 | Installed Integrated Singularity Reactor, increased core energy generation (+20) 11663 | -2/Section 7 | Warped through subspace 11663 | -2/Section 7 | Spotted Alpha 7 11663 | -2/Section 7 | Spotted Alpha 7 11664 | -2/Section 7 | Warped through subspace 11665 | -2/Section 7 | Core integrity fell below 50% 11665 | -2/Section 7 | Found Core Reset Matrix 11808 | -2/Section 7 | Destroyed 7 combat bots 11918 | -2/Section 7 | Spotted Executioner 11920 | -2/Section 7 | Spotted Executioner 11942 | -2/Section 7 | Destroyed Executioner 11964 | -2/Section 7 | Initialized slip node 12014 | -2/Section 7 | Destroyed Executioner 12048 | -2/Section 7 | Found Prototype Processor 12105 | -2/Section 7 | Identified Exp. Core Analyzer 12126 | -2/Section 7 | Found Prototype Processor 12172 | -2/Section 7 | System corruption reached 10% 12254 | -2/Section 7 | Found Transdimensional Reconstructor 12257 | -2/Section 7 | Found Hpw. Transdimensional Reconstructor 12272 | -2/Section 7 | Found Matter Drive 12352 | -2/Section 7 | Build established: Scavenger-Mutant 12449 | -2/Section 7 | Found Sigix Quantum Sheargun 12453 | -2/Section 7 | Found Sigix Quantum Sheargun 12547 | -2/Section 7 | Spotted Striker 12547 | -2/Section 7 | Spotted Striker 12613 | -2/Section 7 | Spotted Executioner 12613 | -2/Section 7 | Spotted Executioner 12695 | -2/Section 7 | Found Sigix Quantum Sheargun 12698 | -2/Section 7 | Found Sigix Quantum Sheargun 12790 | -2/Section 7 | Destroyed Executioner 12802 | -2/Section 7 | Destroyed Executioner 12808 | -2/Section 7 | Identified Exp. Targeting Computer 13002 | -2/Section 7 | Spotted B-99 Colossus 13053 | -2/Section 7 | Rewired B-99 Colossus 13131 | -2/Section 7 | Found LRC Matter Compressor 13131 | -2/Section 7 | Installed LRC Matter Compressor, increased matter storage capacity (+125) 13153 | -2/Section 7 | Destroyed Colossus 9a 13173 | -2/Section 7 | Found Prototype Ballistic Gun 13173 | -2/Section 7 | Identified Multirail 13177 | -2/Section 7 | Found Multirail 13250 | -2/Section 7 | Found Integrity Redistributor 13440 | -2/Section 7 | Found Prototype Device 13440 | -2/Section 7 | Identified Adv. Kinecellerator 13569 | -2/Section 7 | Entered Access 13569 | -1/Access | Evolved 2 slots: Utility x1, Weapon x1 13814 | -1/Access | Found Quantum Capacitor 14016 | -1/Access | Discovered new exit (range 8) 14036 | -1/Access | Entered Command 14134 | -1/Command | Identified exit to Surface 14279 | -1/Command | Spotted Combat Programmer 14288 | -1/Command | Spotted M Guard 14298 | -1/Command | Destroyed M Guard 14305 | -1/Command | Destroyed M Guard 14312 | -1/Command | Spotted Combat Programmer 14351 | -1/Command | System corruption reached 10% 14356 | -1/Command | Destroyed Combat Programmer 14357 | -1/Command | Destroyed Combat Programmer 14357 | -1/Command | Destroyed all MAIN.C guards 14388 | -1/Command | Lost 3 parts (1p1u1w) 14488 | -1/Command | Found Prototype Reactor 14488 | -1/Command | Identified Zero-point Reactor 14493 | -1/Command | Found Zero-point Reactor 14503 | -1/Command | Found Hvy. Regenerative Plating 14509 | -1/Command | Found Prototype Device 14509 | -1/Command | Identified AEGIS Remote Shield 14522 | -1/Command | Found Exp. Targeting Computer 14525 | -1/Command | Found Prototype Device 14525 | -1/Command | Identified Thermal Barrier 14532 | -1/Command | Found AEGIS Remote Shield 14640 | -1/Command | Met MAIN.C 14647 | -1/Command | 0b10 Conduit disabled 14719 | -1/Command | Destroyed MAIN.C Shell 14722 | -1/Command | MAIN.C activated Command garrisons 14734 | -1/Command | Used Integrity Redistributor, redistributed integrity from core (-219) 14755 | -1/Command | Build established: Scavenger-Gunner 14768 | -1/Command | Destroyed MAIN.C 14825 | -1/Command | Found Zero-point Reactor 14828 | -1/Command | Found Exp. Target Analyzer 14842 | -1/Command | Used Core Regenerator, restored core integrity (+355) 14846 | -1/Command | Found Prototype Device 14846 | -1/Command | Identified Beam Splitter 14854 | -1/Command | Spotted B-99 Colossus 14858 | -1/Command | System corruption reached 30% 14931 | -1/Command | P-80 Master assimilated allied H-88 Terminator 15015 | -1/Command | Destroyed 8 combat bots 15025 | -1/Command | Found Multirail 15027 | -1/Command | Found Multirail 15096 | -1/Command | Found Prototype Protection 15096 | -1/Command | Identified Exp. Powered Armor 15100 | -1/Command | Found Exp. Powered Armor 15117 | -1/Command | Found Prototype Ballistic Cannon 15201 | -1/Command | Used Core Reset Matrix 15233 | -1/Command | Discovered exit to Surface (range 13) 15299 | -1/Command | Identified Omega Cannon 15428 | -1/Command | Build established: Scavenger-Tank 15771 | -1/Command | Found Prototype Reactor 15777 | -1/Command | Identified Vortex Chain Reactor 15851 | -1/Command | Found Prototype Ballistic Gun 15870 | -1/Command | Identified Hyp. Multirail 15893 | -1/Command | Found Prototype Device 15905 | -1/Command | Identified Beam Splitter 15916 | -1/Command | Found Prototype Processor 15960 | -1/Command | Identified Exp. Armor Integrity Analyzer 16111 | -1/Command | Found Multirail 16114 | -1/Command | Found Hyp. Multirail 16118 | -1/Command | Found Hyp. Multirail 16131 | -1/Command | Found Multirail 16152 | -1/Command | Found Vortex Chain Reactor 16188 | -1/Command | Found AEGIS Remote Shield 16447 | -1/Command | Build established: Scavenger-Gunner 16576 | -1/Command | Failed to warp due to unstable space 17805 | -1/Command | Found Prototype Processor 17808 | -1/Command | Identified Exp. Core Analyzer 17817 | -1/Command | Discovered exit to Surface (range 8) 17825 | -1/Command | Found Multirail 17895 | -1/Command | Found Multirail 20069 | *** | Heading to fleet! Last Messages --------------- 18551_ Arcs of energy rise from the floor. 18551_ Hyp. Multirail blown off. 18551_ Exp. Powered Armor blown off. 18551_ Hyp. Multirail blown off. 18553_ Acquired Hyp. Multirail. 18567_ Acquired Exp. Powered Armor. 18595_ Acquired 35 matter. 18647_ Acquired 5 matter. 18969_ Acquired Graviton Cannon. 19317_ Dropped Arm. Heavy Treads. 19320_ Acquired Arm. Heavy Treads. 19322_ Dropped Arm. Heavy Treads. 19324_ Acquired Arm. Heavy Treads. 19330_ Acquired 20 matter. 19661_ Dropped Imp. Utility Shielding. 19667_ Acquired Unknown Device. 19667_ Identified Stasis Canceller. 19668_ Dropped Stasis Canceller. 19674_ Acquired Imp. Utility Shielding. 19695_ Acquired 20 matter. Map ----- +----------------------------------------------------+ | ??# # #???????# # #??????????? | | ??# ###########???????# ] ##??????????? | | ??# #?????????????????# ! ! #???????????? | | ??# #?????????????????# # #???######### | | ??# #???????########### # #???#""""""" | | ??# #???????# ! # =!= #???#"" | | ?# #???????# # #!%! #???#""""" | | ?# #???????# "" # # !* #???#"""""""" | | !# #######?# """" ?# = #%*= #???#" " | | # #?# """" ?# #[!* #???#"" """" | | + #?# "" ??# #!| #???#"" """" | | # #?? ??# # #???# " """" | | # #???? ???#####+## #???# " | | ?# #????##"######"## #???# " ! | | #?# #????# [ #???#""" !=!! | | ??# #??### % #???#"" %* | | ??# #??# [=%%= ##??# ! ! | | ??# #??# %=%=[[ "#??# ] ! | | ??# #####" [%*=!=! ! ##### | | ??# %!!* ==!%!%!%= !%** =%= | | ??# ==%= """%T!""" ![%[*!% | | ??# ==! """""""""" ==!%= !% | | ####+#########+#####+############ ###### " "" | | #??# """"" #######???#! *#????# " """ | | #??#| ""R"" ## #???# =%#????# """ | | #??# " " ## @ #???# #????######### | | #??# ## #???# #????????????? | | #??# #### #???# ###????????????? | | #??# #??# #???# #??????????????? | | #??# #??# #####+####???????????? | | #??# #??# ## #???????????? | | #??###########??# ## = #???????????? | | #???????????????# ## !% #???????????? | | #??????????????## ## != #???????????? | | #??????????????# = # #???????????? | | #??????????????# =#[ #???????????? | | #??????????????# =+% #???????????? | | #??????????????# !#! #???????????? | | #??????????????## ## #???????????? | | ##########???????????????# ## #???????????? | | ?????????????????????????# ## #???????????? | | ?????????????????????????# ## #???????????? | | ???????????????????????### ##########???????????? | | ???????????????????????#| #??????????????????? | | ???????????????????????# #??????????????????? | | ???????????????????????# "" #??????????????????? | | ???????????????????????# T" #??????????????????? | | ???????????????????????# #??????????????????? | | ?????????????????##????#! #??????????????????? | | ?????????????????#"#######+#+######??????????????? | +----------------------------------------------------+ Best States ------------- Heat Dissipation 62 Coolant Potential 220 Energy Generation 81 Energy Capacity 2380 Matter Stores 925 Matter Capacity 925 Sight Range 23 Terrain Scan Range 24 Terrain Scan Density 60 Additional Mass Support 20 Armor Coverage 1200 Resistance: TH 75 Resistance: EM 75 Core Shielding 30 Utility Shielding 66 Weapon Shielding 90 Evasion (%) 68 Targeting Accuracy 24 Launcher Accuracy 30 Target Analysis 12 Core Analysis 15 Armor Integrity Analysis 90 Recoil Reduction 4 Salvage Targeting 3 Offensive Hacking 14 Defensive Hacking 12 Relay Coupler Types 87 Relay Coupler Value 3 Item Schematics ----------------- None Robot Schematics ------------------ None Fabricated ------------ Nothing Alien Tech Used ----------------- Sigix Broadsword Dimensional Node Initializer Transdimensional Reconstructor Phase Redirector Core Stripper Integrity Redistributor Integrated Singularity Reactor LRC Matter Compressor Sigix Quantum Sheargun Core Regenerator Core Reset Matrix Achievements -------------- None Challenges ------------ None Game ------ Seed TachyonSurveybotScanner Manual? 0 Play Time 03:26:46 Cumulative 1550.2 hours Start 2020.09.12 @ 04:36:24 End 2020.09.12 @ 08:27:30 Sessions 3 Manual Loads 0 Difficulty Rogue Special Mode None Game No. 2449 Rogue 2442 Adventurer 0 Explorer 7 Win Type 2 Total 134 Types 40/11/57/3/3/4/16/0/0 Lore% 96 Gallery% 98 Achievement% 100 Wizard Run 0 Options --------- ASCII 0 Keyboard 1 Movement Numpad Keybinds 1 Fullscreen 1 Font 18/SmallcapsGlow Map View 76x50 Tactical HUD 1 Map Filters NONE Filters NONE Steam 1 RUN: 0b2fbc3d-2e57-4fbd-996e-aa216c7dd567